bitfinex/quotes_BTCUSD_20230103
["timestamp","ask_amount","ask_price","bid_price","bid_amount"]
[1672783254506,4.19187035,16683.0,16682.0,0.20580161]
[1672783254749,3.30663249,16683.0,16682.0,0.20580161]
[1672783255004,3.06306871,16683.0,16682.0,0.20580161]
[1672783255223,3.67956271,16683.0,16682.0,0.20580161]
[1672783259410,3.30663249,16683.0,16682.0,0.20580161]
[1672783259624,3.64026797,16683.0,16682.0,0.20580161]
[1672783262187,3.94026797,16683.0,16682.0,0.20580161]
[1672783262445,3.64026797,16683.0,16682.0,0.20580161]
[1672783263213,3.30663249,16683.0,16682.0,0.20580161]
[1672783263466,3.61241127,16683.0,16682.0,0.20580161]
[1672783270316,3.61227122,16683.0,16682.0,0.20580161]
[1672783270536,4.4981332,16683.0,16682.0,0.20580161]
[1672783274144,3.61227122,16683.0,16682.0,0.20580161]
[1672783279658,4.4980916,16683.0,16682.0,0.20580161]
[1672783279878,3.61227122,16683.0,16682.0,0.20580161]
[1672783282995,2.99577722,16683.0,16682.0,0.20580161]
[1672783283442,3.61227122,16683.0,16682.0,0.20580161]
[1672783284439,4.49808805,16683.0,16682.0,0.20580161]
[1672783286389,3.88159405,16683.0,16682.0,0.20580161]
[1672783289903,2.99577722,16683.0,16682.0,0.20580161]
[1672783290399,2.99535871,16683.0,16682.0,0.20580161]
[1672783290907,2.99535871,16683.0,16682.0,0.38570161]
[1672783294503,2.99535871,16683.0,16682.0,0.38562946]
[1672783302306,3.61185271,16683.0,16682.0,0.38562946]
[1672783304547,2.99535871,16683.0,16682.0,0.38562946]
[1672783310925,3.61185271,16683.0,16682.0,0.38562946]
[1672783312226,2.99535871,16683.0,16682.0,0.38562946]
[1672783318817,2.99535871,16683.0,16682.0,0.3855603]
[1672783328209,3.61185271,16683.0,16682.0,0.3855603]
[1672783329828,4.49766954,16683.0,16682.0,0.3855603]
[1672783334609,3.61185271,16683.0,16682.0,0.3855603]
[1672783334848,4.49766954,16683.0,16682.0,0.3855603]
[1672783339186,4.49766954,16683.0,16682.0,0.38548815]
[1672783340433,3.61185271,16683.0,16682.0,0.38548815]
[1672783343172,4.49766954,16683.0,16682.0,0.38548815]
[1672783345133,2.99535871,16683.0,16682.0,0.38548815]
[1672783349134,3.61185271,16683.0,16682.0,0.38548815]
[1672783349643,2.99535871,16683.0,16682.0,0.38548815]
[1672783354668,4.49766954,16683.0,16682.0,0.38548815]
[1672783358692,3.61185271,16683.0,16682.0,0.38548815]
[1672783359441,4.49766954,16683.0,16682.0,0.38548815]
[1672783359948,4.48766954,16683.0,16682.0,0.38548815]
[1672783367401,2.69962904,16683.0,16682.0,0.38548815]
[1672783367650,3.43371616,16683.0,16682.0,0.38548815]
[1672783367903,4.05021016,16683.0,16682.0,0.38548815]
[1672783368193,4.48586643,16683.0,16682.0,0.38548815]
[1672783370938,4.48586643,16683.0,16682.0,0.20558815]
[1672783381824,3.86937243,16683.0,16682.0,0.20558815]
[1672783382036,4.48586643,16683.0,16682.0,0.20558815]
[1672783382291,3.86937243,16683.0,16682.0,0.20558815]
[1672783382554,4.48586643,16683.0,16682.0,0.20558815]
[1672783382847,4.48586643,16683.0,16682.0,0.20551526]
[1672783390958,3.6000496,16683.0,16682.0,0.20551526]
[1672783392637,2.9835556,16683.0,16682.0,0.20551526]
[1672783393126,3.5999844,16683.0,16682.0,0.20551526]
[1672783393366,4.48580123,16683.0,16682.0,0.20551526]
[1672783401003,4.48580123,16683.0,16682.0,0.38451526]
[1672783402829,4.48580123,16683.0,16682.0,0.31842669]
[1672783402830,3.29420562,16683.0,16682.0,0.31842669]
[1672783403072,3.9112963,16683.0,16682.0,0.31842669]
[1672783403572,3.97284117,16683.0,16682.0,0.31842669]
[1672783404074,3.59420562,16683.0,16682.0,0.31842669]
[1672783404553,3.90183284,16683.0,16682.0,0.31842669]
[1672783404816,3.93104677,16683.0,16682.0,0.31842669]
[1672783406653,3.59420562,16683.0,16682.0,0.31842669]
[1672783406951,3.98781126,16683.0,16682.0,0.31842669]
[1672783407663,3.59420562,16683.0,16682.0,0.31842669]
[1672783408152,3.92453279,16683.0,16682.0,0.31842669]
[1672783409426,3.30803879,16683.0,16682.0,0.31842669]
[1672783410920,3.30803879,16683.0,16682.0,0.13942669]
[1672783413020,4.19322221,16683.0,16682.0,0.13942669]
[1672783413276,4.80971621,16683.0,16682.0,0.13942669]
[1672783415080,4.50971621,16683.0,16682.0,0.13942669]
[1672783415340,4.80971621,16683.0,16682.0,0.13942669]
[1672783415851,4.50971621,16683.0,16682.0,0.13942669]
[1672783416344,4.80971621,16683.0,16682.0,0.13942669]
[1672783418898,4.50971621,16683.0,16682.0,0.13942669]
[1672783419405,4.80971621,16683.0,16682.0,0.13942669]
[1672783421401,4.50971621,16683.0,16682.0,0.13942669]
[1672783421620,4.80971621,16683.0,16682.0,0.13942669]
[1672783423390,3.89322221,16683.0,16682.0,0.13942669]
[1672783425885,3.89322221,16683.0,16682.0,0.13932072]
[1672783427423,3.87322221,16683.0,16682.0,0.13932072]
[1672783441461,2.98803879,16683.0,16682.0,0.13932072]
[1672783442424,3.60453279,16683.0,16682.0,0.13932072]
[1672783442679,3.87359806,16683.0,16682.0,0.13932072]
[1672783443961,2.98803879,16683.0,16682.0,0.13932072]
[1672783445844,3.60453279,16683.0,16682.0,0.13932072]
[1672783446863,2.98803879,16683.0,16682.0,0.13932072]
[1672783448577,3.87359806,16683.0,16682.0,0.13932072]
[1672783449144,2.98803879,16683.0,16682.0,0.13932072]
[1672783449389,3.87359806,16683.0,16682.0,0.13932072]
[1672783450855,3.87359806,16683.0,16682.0,0.31883939]
[1672783451627,4.49009206,16683.0,16682.0,0.31883939]
[1672783452877,3.87359806,16683.0,16682.0,0.31883939]
[1672783454293,3.86359806,16683.0,16682.0,0.31883939]
[1672783460819,2.97803879,16683.0,16682.0,0.31883939]
[1672783461083,2.54238252,16683.0,16682.0,0.31883939]
[1672783461841,2.54232252,16683.0,16682.0,0.31883939]
[1672783462356,2.88894338,16683.0,16682.0,0.31883939]
[1672783465268,3.50543738,16683.0,16682.0,0.31883939]
[1672783471863,3.45543738,16683.0,16682.0,0.31883939]
[1672783472572,2.83894338,16683.0,16682.0,0.31883939]
[1672783475347,2.49232252,16683.0,16682.0,0.31883939]
[1672783477904,2.83134677,16683.0,16682.0,0.31883939]
[1672783478725,2.83134677,16683.0,16682.0,0.32083736]
[1672783479220,3.40745233,16683.0,16682.0,0.32083736]
[1672783479482,2.79095833,16683.0,16682.0,0.31883939]
[1672783479747,2.82869761,16683.0,16682.0,0.31883939]
[1672783480235,3.44519161,16683.0,16682.0,0.31883939]
[1672783482936,3.44519161,16683.0,16682.0,0.31893928]
[1672783483433,3.39519161,16683.0,16682.0,0.31883939]
[1672783484186,3.39519161,16683.0,16682.0,0.31893928]
[1672783484437,3.39519161,16683.0,16682.0,0.31883939]
[1672783484956,2.77869761,16683.0,16682.0,0.31893928]
[1672783485532,2.77869761,16683.0,16682.0,0.31883939]
[1672783485796,3.39519161,16683.0,16682.0,0.31883939]
[1672783486540,2.77869761,16683.0,16682.0,0.31893928]
[1672783487787,2.77869761,16683.0,16682.0,0.31883939]
[1672783490577,2.77869761,16683.0,16682.0,0.31893928]
[1672783491112,2.77869761,16683.0,16682.0,0.31883939]
[1672783491349,2.77869761,16683.0,16682.0,0.31893928]
[1672783491609,2.77869761,16683.0,16682.0,0.31883939]
[1672783492389,2.77869761,16683.0,16682.0,0.31893928]
[1672783495918,2.77869761,16683.0,16682.0,0.31883939]
[1672783496169,3.39519161,16683.0,16682.0,0.31883939]
[1672783496418,2.77869761,16683.0,16682.0,0.31883939]
[1672783502876,2.77869761,16683.0,16682.0,0.31893928]
[1672783503356,2.77869761,16683.0,16682.0,0.31883939]
[1672783504601,2.43967336,16683.0,16682.0,0.31883939]
[1672783504856,2.43967336,16683.0,16682.0,0.52279639]
[1672783505105,2.43967336,16683.0,16682.0,0.31883939]
[1672783507125,2.43967336,16683.0,16682.0,0.31893928]
[1672783507390,2.43967336,16683.0,16682.0,0.52289628]
[1672783507649,2.77708693,16683.0,16682.0,0.52279639]
[1672783507927,2.77708693,16683.0,16682.0,0.31883939]
[1672783508431,2.77708693,16683.0,16682.0,0.31872776]
[1672783510429,2.77708693,16683.0,16682.0,0.52268476]
[1672783511420,2.77708693,16683.0,16682.0,0.52278465]
[1672783511661,2.77708693,16683.0,16682.0,0.52268476]
[1672783513172,2.77708693,16683.0,16682.0,0.31872776]
[1672783515941,2.77708693,16683.0,16682.0,0.31882765]
[1672783516505,2.77708693,16683.0,16682.0,0.31872776]
[1672783516761,2.77708693,16683.0,16682.0,0.31882765]
[1672783517555,2.77708693,16683.0,16682.0,0.31872776]
[1672783518847,2.77708693,16683.0,16682.0,0.31882765]
[1672783520336,2.43967336,16683.0,16682.0,0.62521723]
[1672783521108,2.10934619,16683.0,16682.0,1.06787479]
[1672783521357,2.10934619,16683.0,16682.0,1.45173179]
[1672783521597,2.10934619,16683.0,16682.0,1.4516319]
[1672783521866,2.10934619,16683.0,16682.0,1.00897434]
[1672783522357,2.07734619,16683.0,16682.0,0.99997434]
[1672783522600,2.10534619,16683.0,16682.0,1.00897434]
[1672783522853,2.07734619,16683.0,16682.0,0.99997434]
[1672783523097,2.10534619,16683.0,16682.0,1.00897434]
[1672783526169,2.10534619,16683.0,16682.0,1.00907423]
[1672783526440,2.10534619,16683.0,16682.0,1.00897434]
[1672783527521,2.10534619,16683.0,16682.0,1.00907423]
[1672783528232,2.10534619,16683.0,16682.0,1.00897434]
[1672783530152,2.10534619,16683.0,16682.0,1.00907423]
[1672783530417,2.10534619,16683.0,16682.0,1.00897434]
[1672783531703,2.10534619,16683.0,16682.0,1.00886469]
[1672783533409,2.10534619,16683.0,16682.0,0.70247511]
[1672783533648,2.10534619,16683.0,16682.0,0.49851811]
[1672783533649,2.44200122,16683.0,16682.0,0.49851811]
[1672783533893,2.44200122,16683.0,16682.0,0.498618]
[1672783534473,2.44200122,16683.0,16682.0,0.49851811]
[1672783534889,2.77283753,16683.0,16682.0,0.49851811]
[1672783540906,2.77276622,16683.0,16682.0,0.31891811]
[1672783549740,2.10527488,16683.0,16682.0,0.58278287]
[1672783549996,2.10527488,16683.0,16682.0,1.02554031]
[1672783550756,2.10527488,16683.0,16682.0,1.22949731]
[1672783550965,2.10527488,16683.0,16682.0,1.40939731]
[1672783559162,2.10527488,16683.0,16682.0,1.40929743]
[1672783561883,2.10527488,16683.0,16682.0,0.96663987]
[1672783562905,2.10527488,16683.0,16682.0,0.96673975]
[1672783563160,2.10527488,16683.0,16682.0,0.76278275]
[1672783563414,2.10527488,16683.0,16682.0,0.96673975]
[1672783565185,2.10527488,16683.0,16682.0,0.96666681]
[1672783568979,2.10527488,16683.0,16682.0,0.76260993]
[1672783569228,2.10527488,16683.0,16682.0,0.96656693]
[1672783569475,2.1004693,16683.0,16682.0,0.96656693]
[1672783570540,2.1004693,16683.0,16682.0,0.96666681]
[1672783574253,2.1004693,16683.0,16682.0,0.96656693]
[1672783576981,2.1004693,16683.0,16682.0,1.40922449]
[1672783577996,2.1004693,16683.0,16682.0,1.40932437]
[1672783580536,1.86399528,16683.0,16682.0,1.40932437]
[1672783583670,2.47113345,16683.0,16682.0,1.40932437]
[1672783584661,2.47113345,16683.0,16682.0,1.20536737]
[1672783584908,1.86399528,16683.0,16682.0,1.20536737]
[1672783585156,2.47111835,16683.0,16682.0,1.40932437]
[1672783585399,1.86399528,16683.0,16682.0,1.20536737]
[1672783585609,1.86399528,16683.0,16682.0,1.40932437]
[1672783588639,1.86399528,16683.0,16682.0,1.40922449]
[1672783589895,1.86399528,16683.0,16682.0,0.76260993]
[1672783590400,1.86399528,16683.0,16682.0,0.76259562]
[1672783590615,1.86399528,16683.0,16682.0,0.76249574]
[1672783591576,1.86399528,16683.0,16682.0,0.76259562]
[1672783600587,1.86399528,16683.0,16682.0,0.76249574]
[1672783605810,1.86399528,16683.0,16682.0,0.76259562]
[1672783609712,1.86399528,16683.0,16682.0,0.76249574]
[1672783610525,1.86399528,16683.0,16682.0,0.76239816]
[1672783611665,1.86399528,16683.0,16682.0,0.76249804]
[1672783613358,1.86399528,16683.0,16682.0,0.76239816]
[1672783614123,1.86399528,16683.0,16682.0,0.76249804]
[1672783617616,1.86399528,16683.0,16682.0,0.49863328]
[1672783620614,1.86399528,16683.0,16682.0,0.4985334]
[1672783622363,2.28914131,16683.0,16682.0,0.4985334]
[1672783622609,2.65472854,16683.0,16682.0,0.4985334]
[1672783622856,3.27122254,16683.0,16682.0,0.4985334]
[1672783624268,3.27122254,16683.0,16682.0,0.49863328]
[1672783624529,2.65472854,16683.0,16682.0,0.49863328]
[1672783627394,2.65472854,16683.0,16682.0,0.4985334]
[1672783627840,2.65472854,16683.0,16682.0,0.49863328]
[1672783629122,2.65472854,16683.0,16682.0,0.4985334]
[1672783629360,2.65472854,16683.0,16682.0,0.49863328]
[1672783629616,2.65472854,16683.0,16682.0,0.4985334]
[1672783629840,3.27122254,16683.0,16682.0,0.4985334]
[1672783630540,2.65472854,16683.0,16682.0,0.49863328]
[1672783631783,2.65472854,16683.0,16682.0,0.4985334]
[1672783633144,2.65472854,16683.0,16682.0,0.49846789]
[1672783633643,2.22958251,16683.0,16682.0,0.49846789]
[1672783633901,2.65473783,16683.0,16682.0,0.49846789]
[1672783635358,2.65473783,16683.0,16682.0,0.49856777]
[1672783635584,2.65473783,16683.0,16682.0,0.49846789]
[1672783636798,2.22958251,16683.0,16682.0,0.49846789]
[1672783637305,2.65474479,16683.0,16682.0,0.13866789]
[1672783637526,3.27123879,16683.0,16682.0,0.13866789]
[1672783640562,3.27123879,16683.0,16682.0,0.13876777]
[1672783640795,2.22958251,16683.0,16682.0,0.43391197]
[1672783641161,2.22958251,16683.0,16682.0,0.43381209]
[1672783642026,2.22958251,16683.0,16682.0,0.43391197]
[1672783643052,2.22958251,16683.0,16682.0,0.63786897]
[1672783645209,2.22958251,16683.0,16682.0,0.63776909]
[1672783645669,2.22958251,16683.0,16682.0,0.43381209]
[1672783645923,2.22958251,16683.0,16682.0,0.63776909]
[1672783646949,2.22958251,16683.0,16682.0,0.43381209]
[1672783647163,2.22958251,16683.0,16682.0,0.63776909]
[1672783648923,2.22958251,16683.0,16682.0,0.63786897]
[1672783649428,2.22958251,16683.0,16682.0,0.13866789]
[1672783649944,2.22958251,16683.0,16682.0,0.13876777]
[1672783651110,2.22958251,16683.0,16682.0,0.34272477]
[1672783654289,2.22958251,16683.0,16682.0,0.13876777]
[1672783654541,2.22958251,16683.0,16682.0,0.1386802]
[1672783655787,2.22958251,16683.0,16682.0,0.3426372]
[1672783664603,2.22958251,16683.0,16682.0,0.1386802]
[1672783664853,2.21958251,16683.0,16682.0,0.3426372]
[1672783668280,2.21958251,16683.0,16682.0,0.1386802]
[1672783668776,2.21958251,16683.0,16682.0,0.3426372]
[1672783669239,1.8618354,16683.0,16682.0,0.78529476]
[1672783669491,1.8618354,16683.0,16682.0,0.81970735]
[1672783669976,1.8618354,16683.0,16682.0,1.02366435]
[1672783671479,1.8618354,16683.0,16682.0,0.81970735]
[1672783673185,1.8618354,16683.0,16682.0,1.02366435]
[1672783673427,1.8618354,16683.0,16682.0,0.81970735]
[1672783673688,1.8618354,16683.0,16682.0,0.37694991]
[1672783677511,1.8618354,16683.0,16682.0,0.37704979]
[1672783679528,1.8618354,16683.0,16682.0,0.81970735]
[1672783680539,1.8618354,16683.0,16682.0,1.02366435]
[1672783680789,1.8618354,16683.0,16682.0,0.81970735]
[1672783681054,1.8618354,16683.0,16682.0,1.02366435]
[1672783681306,1.8618354,16683.0,16682.0,0.81970735]
[1672783681551,1.86173279,16683.0,16682.0,1.02366435]
[1672783681796,1.86173279,16683.0,16682.0,0.81970735]
[1672783683941,1.86173279,16683.0,16682.0,0.37704979]
[1672783684195,1.86173279,16683.0,16682.0,1.02366435]
[1672783684451,1.86173279,16683.0,16682.0,0.81970735]
[1672783685757,1.86173279,16683.0,16682.0,1.02366435]
[1672783686508,1.86173279,16683.0,16682.0,0.81970735]
[1672783687041,2.46114479,16683.0,16682.0,0.37704979]
[1672783687306,1.86173279,16683.0,16682.0,0.37704979]
[1672783687563,1.86173279,16683.0,16682.0,0.37694991]
[1672783689518,1.86173279,16683.0,16682.0,0.81960747]
[1672783689761,1.86173279,16683.0,16682.0,0.37694991]
[1672783690477,1.86173279,16683.0,16682.0,0.37704979]
[1672783692012,1.86173279,16683.0,16682.0,0.81970735]
[1672783692261,1.86173279,16683.0,16682.0,0.37704979]
[1672783693095,2.46114479,16683.0,16682.0,0.37704979]
[1672783693583,1.86173279,16683.0,16682.0,0.37704979]
[1672783699218,2.46114479,16683.0,16682.0,0.13858032]
[1672783699476,2.54248681,16683.0,16682.0,0.13858032]
[1672783699736,2.13315722,16683.0,16682.0,0.13858032]
[1672783699979,2.54254243,16683.0,16682.0,0.13858032]
[1672783701041,2.54275866,16683.0,16682.0,0.13858032]
[1672783701295,2.13315722,16683.0,16682.0,0.13858032]
[1672783702776,2.13315722,16683.0,16682.0,0.14057829]
[1672783703001,2.13315722,16683.0,16682.0,0.13858032]
[1672783703764,2.13315722,16683.0,16682.0,0.13849861]
[1672783704220,2.13315722,16683.0,16682.0,0.14049658]
[1672783704736,2.54280122,16683.0,16682.0,0.14049658]
[1672783704947,2.54280122,16683.0,16682.0,0.13849861]
[1672783705189,2.54280121,16683.0,16682.0,0.14049658]
[1672783705442,2.13315722,16683.0,16682.0,0.13849861]
[1672783706187,2.54280122,16683.0,16682.0,0.14049658]
[1672783706431,2.54280122,16683.0,16682.0,0.13849861]
[1672783707156,2.54280122,16683.0,16682.0,0.13859851]
[1672783707892,2.54283815,16683.0,16682.0,0.13859851]
[1672783708128,2.13315722,16683.0,16682.0,0.13859851]
[1672783710875,2.13315722,16683.0,16682.0,0.13843851]
[1672783714241,2.13315722,16683.0,16682.0,0.13843375]
[1672783714453,2.13315722,16683.0,16682.0,0.13833861]
[1672783715185,2.13315722,16683.0,16682.0,0.13843375]
[1672783721915,2.13315722,16683.0,16682.0,0.34239075]
[1672783722409,2.13315722,16683.0,16682.0,0.13843375]
[1672783724911,2.13315722,16683.0,16682.0,0.13843827]
[1672783725474,2.13315722,16683.0,16682.0,0.13833861]
[1672783728714,2.13315722,16683.0,16682.0,0.13852866]
[1672783728998,2.13315722,16683.0,16682.0,0.13833861]
[1672783730001,2.51380407,16683.0,16682.0,0.13833861]
[1672783731591,2.13315722,16683.0,16682.0,0.13852866]
[1672783732115,2.50566051,16683.0,16682.0,0.13852866]
[1672783732368,2.13315722,16683.0,16682.0,0.13852866]
[1672783732615,2.13315722,16683.0,16682.0,0.13833861]
[1672783734163,2.13315722,16683.0,16682.0,0.13827365]
[1672783736337,2.13315722,16683.0,16682.0,0.1384637]
[1672783737158,2.48549494,16683.0,16682.0,0.1384637]
[1672783737895,2.48549493,16683.0,16682.0,0.1384637]
[1672783738415,2.13315722,16683.0,16682.0,0.1384637]
[1672783738623,2.13315722,16683.0,16682.0,0.13827365]
[1672783738874,2.13315722,16683.0,16682.0,0.1384637]
[1672783739616,2.13315722,16683.0,16682.0,0.13827365]
[1672783739862,2.13315722,16683.0,16682.0,0.1384637]
[1672783740124,2.13315722,16683.0,16682.0,0.13827365]
[1672783740382,2.74822767,16683.0,16682.0,0.20740365]
[1672783740676,3.36472167,16683.0,16682.0,0.27545365]
[1672783743309,4.25028094,16683.0,16682.0,0.27545365]
[1672783744611,4.55028094,16683.0,16682.0,0.27545365]
[1672783744854,4.27099639,16683.0,16682.0,0.27545365]
[1672783745105,4.62470152,16683.0,16682.0,0.27545365]
[1672783745357,4.32470152,16683.0,16682.0,0.27545365]
[1672783745853,4.62470152,16683.0,16682.0,0.27545365]
[1672783748140,4.86117554,16683.0,16682.0,0.27545365]
[1672783748395,3.93517232,16683.0,16682.0,0.27045365]
[1672783748634,3.95340439,16683.0,16682.0,0.27045365]
[1672783748888,4.83863531,16683.0,16682.0,0.27045365]
[1672783749612,3.92540439,16683.0,16682.0,0.26145365]
[1672783749861,4.94224898,16683.0,16682.0,0.26145365]
[1672783751433,4.05740439,16683.0,16682.0,0.26145365]
[1672783751681,4.94220766,16683.0,16682.0,0.26145365]
[1672783755216,4.81020766,16683.0,16682.0,0.26145365]
[1672783756443,4.47871441,16683.0,16682.0,0.26145365]
[1672783756701,4.64329229,16683.0,16682.0,0.26245365]
[1672783756969,3.75848902,16683.0,16682.0,0.26245365]
[1672783757255,4.64263666,16683.0,16682.0,0.26245365]
[1672783757507,3.75848902,16683.0,16682.0,0.26245365]
[1672783757754,4.64262867,16683.0,16682.0,0.26245365]
[1672783758482,4.65598173,16683.0,16682.0,0.26245365]
[1672783758698,3.77184208,16683.0,16682.0,0.26245365]
[1672783758958,3.77184208,16683.0,16682.0,0.02902]
[1672783759209,3.77184208,16683.0,16682.0,0.01451]
[1672783759933,3.76684208,16683.0,16682.0,0.01451]
[1672783760696,3.76684208,16683.0,16682.0,0.00725]
[1672783762717,3.76684208,16683.0,16681.0,0.84461618]
[1672783762971,3.0674161,16682.0,16681.0,0.84461618]
[1672783763209,4.8657601,16682.0,16681.0,0.84461618]
[1672783763729,4.90624091,16682.0,16681.0,0.84461618]
[1672783763968,4.57434909,16682.0,16681.0,0.84461618]
[1672783764218,4.70834909,16682.0,16681.0,0.84652618]
[1672783764472,5.09825361,16682.0,16681.0,0.84652618]
[1672783765737,4.96425361,16682.0,16681.0,0.84552618]
[1672783765995,4.71034909,16682.0,16681.0,0.84652618]
[1672783766235,5.00130222,16682.0,16681.0,0.84652618]
[1672783766478,4.99188411,16682.0,16681.0,0.84652618]
[1672783766739,4.71034909,16682.0,16681.0,0.84652618]
[1672783767505,5.05556443,16682.0,16681.0,0.84652618]
[1672783767754,4.71034909,16682.0,16681.0,0.84652618]
[1672783767992,4.71034909,16682.0,16681.0,0.63024162]
[1672783769749,4.71069376,16682.0,16681.0,0.63024162]
[1672783770239,4.71069376,16682.0,16681.0,0.31512]
[1672783771013,4.71069376,16682.0,16681.0,0.137336]
[1672783772231,5.06805435,16682.0,16681.0,0.137336]
[1672783772490,4.71069376,16682.0,16681.0,0.137336]
[1672783773690,5.08559215,16682.0,16681.0,0.137336]
[1672783773934,4.71069376,16682.0,16681.0,0.10491235]
[1672783774170,3.8270946,16682.0,16681.0,0.10491235]
[1672783774689,4.71045516,16682.0,16681.0,0.10491235]
[1672783774932,4.66045516,16682.0,16681.0,0.10491235]
[1672783775926,5.04750934,16682.0,16681.0,0.10491235]
[1672783776183,4.66045516,16682.0,16681.0,0.10491235]
[1672783777204,5.00336113,16682.0,16681.0,0.10491235]
[1672783777452,5.88686675,16682.0,16681.0,0.10491235]
[1672783778097,5.00336113,16682.0,16681.0,0.10491235]
[1672783778910,5.88715916,16682.0,16681.0,0.10491235]
[1672783779923,5.00336113,16682.0,16681.0,0.10491235]
[1672783780181,4.97764684,16682.0,16681.0,0.08045296]
[1672783780436,4.66045516,16682.0,16681.0,0.08045296]
[1672783782186,4.99528869,16682.0,16681.0,0.08045296]
[1672783782692,4.99494402,16682.0,16681.0,0.08045296]
[1672783783192,4.55879676,16682.0,16681.0,0.08045296]
[1672783783711,4.40197065,16682.0,16681.0,0.08045296]
[1672783785966,4.40197065,16682.0,16681.0,0.06193202]
[1672783787952,4.22388413,16682.0,16681.0,0.06193202]
[1672783788673,4.22315388,16682.0,16681.0,0.06193202]
[1672783788916,4.40380357,16682.0,16681.0,0.06193202]
[1672783791363,4.23650694,16682.0,16681.0,0.06193202]
[1672783791846,4.23650694,16682.0,16681.0,0.05217702]
[1672783792091,4.23650694,16682.0,16681.0,0.03801525]
[1672783793566,4.52108822,16682.0,16681.0,0.03801525]
[1672783794302,4.52108822,16682.0,16681.0,2.5e-07]
[1672783794558,4.52108822,16682.0,16681.0,0.01899025]
[1672783796266,4.23650694,16682.0,16681.0,0.01899025]
[1672783796750,4.23650694,16682.0,16681.0,0.00474]
[1672783796997,4.23650694,16682.0,16681.0,0.00237]
[1672783797237,0.25,16681.0,16679.0,0.09828138]
[1672783797489,4.64878438,16680.0,16679.0,0.09828138]
[1672783797970,4.64878438,16680.0,16679.0,0.04875]
[1672783798462,4.82566471,16680.0,16679.0,0.04875]
[1672783798737,5.02898543,16680.0,16679.0,0.04875]
[1672783798986,5.02898543,16680.0,16679.0,0.04975]
[1672783799229,5.3270964,16680.0,16679.0,0.04875]
[1672783799489,5.16298543,16680.0,16679.0,0.04975]
[1672783800190,5.45436405,16680.0,16679.0,0.04875]
[1672783800691,5.02898543,16680.0,16679.0,0.04875]
[1672783801688,5.02898543,16680.0,16679.0,0.04975]
[1672783801948,5.02898543,16680.0,16679.0,0.04875]
[1672783802193,5.02898543,16680.0,16679.0,0.04975]
[1672783802441,5.02898543,16680.0,16679.0,0.04875]
[1672783803196,5.02898543,16680.0,16679.0,0.04975]
[1672783803450,5.02898543,16680.0,16679.0,0.04875]
[1672783803941,5.16298543,16680.0,16679.0,0.04975]
[1672783804191,5.58825177,16680.0,16679.0,0.04975]
[1672783804702,5.02898543,16680.0,16679.0,0.04875]
[1672783804964,5.16398543,16680.0,16679.0,0.04875]
[1672783805201,5.02898543,16680.0,16679.0,0.04875]
[1672783805474,5.16298543,16680.0,16679.0,0.04875]
[1672783805728,5.16298543,16680.0,16679.0,0.04975]
[1672783805973,5.29798543,16680.0,16679.0,0.04975]
[1672783806477,5.29798543,16680.0,16679.0,0.046749]
[1672783824203,4.68149143,16680.0,16679.0,0.046749]
[1672783825172,5.29798543,16680.0,16679.0,0.046749]
[1672783826169,4.68149143,16680.0,16679.0,0.046749]
[1672783830765,4.38149143,16680.0,16679.0,0.04666798]
[1672783831934,3.49611494,16680.0,16679.0,0.04666798]
[1672783832180,4.75570734,16680.0,16679.0,0.04666798]
[1672783832421,4.38149143,16680.0,16679.0,0.04666798]
[1672783833846,4.38076358,16680.0,16679.0,0.04666798]
[1672783835914,4.68076358,16680.0,16679.0,0.04666798]
[1672783838854,5.2971749,16680.0,16679.0,0.04666798]
[1672783840458,4.6806809,16680.0,16679.0,0.04666798]
[1672783840707,5.2971749,16680.0,16679.0,0.04666798]
[1672783842210,4.6806809,16680.0,16679.0,0.04666798]
[1672783842699,5.2971749,16680.0,16679.0,0.04666798]
[1672783843457,5.29643788,16680.0,16679.0,0.04666798]
[1672783843933,4.67994388,16680.0,16679.0,0.05625539]
[1672783844920,4.67994388,16680.0,16679.0,0.0562554]
[1672783846247,4.67994388,16680.0,16679.0,0.05625541]
[1672783847233,4.67994388,16680.0,16679.0,0.05625542]
[1672783847484,5.16243788,16680.0,16679.0,0.05625542]
[1672783847869,5.16243788,16680.0,16679.0,0.05625543]
[1672783847870,5.16143788,16680.0,16679.0,0.05625543]
[1672783849788,5.54521179,16680.0,16679.0,0.05625543]
[1672783850004,5.16167938,16680.0,16679.0,0.05625544]
[1672783850218,5.54570671,16680.0,16679.0,0.05625545]
[1672783850461,5.16167895,16680.0,16679.0,0.05625546]
[1672783850745,5.54566882,16680.0,16679.0,0.05625546]
[1672783850957,5.16167895,16680.0,16679.0,0.05625547]
[1672783851173,5.54566882,16680.0,16679.0,0.05625547]
[1672783851381,5.16167895,16680.0,16679.0,0.05625548]
[1672783851630,5.54570628,16680.0,16679.0,0.05625548]
[1672783851874,5.16167895,16680.0,16679.0,0.05625549]
[1672783852611,5.54568642,16680.0,16679.0,0.05625549]
[1672783853132,5.16167895,16680.0,16679.0,0.05625549]
[1672783853382,5.54568642,16680.0,16679.0,0.0562555]
[1672783853663,5.16167895,16680.0,16679.0,0.0562555]
[1672783854223,5.54567673,16680.0,16679.0,0.0562555]
[1672783854549,5.16167895,16680.0,16679.0,0.0562555]
[1672783854727,5.54563924,16680.0,16679.0,0.05625551]
[1672783854972,5.16167895,16680.0,16679.0,0.05625551]
[1672783855218,5.54563097,16680.0,16679.0,0.05625552]
[1672783855467,5.16167895,16680.0,16679.0,0.05625552]
[1672783855711,5.54566846,16680.0,16679.0,0.05625553]
[1672783856214,5.53940765,16680.0,16679.0,0.05625553]
[1672783856704,5.53940765,16680.0,16679.0,0.05625554]
[1672783859046,5.53940765,16680.0,16679.0,0.05625555]
[1672783861654,5.53940765,16680.0,16679.0,0.05625556]
[1672783863221,4.65379009,16680.0,16679.0,0.05625557]
[1672783863503,4.03729609,16680.0,16679.0,0.05625557]
[1672783863773,4.92255463,16680.0,16679.0,0.05625557]
[1672783864009,5.53904863,16680.0,16679.0,0.05625557]
[1672783864505,5.53904863,16680.0,16679.0,0.05625558]
[1672783865264,4.65379009,16680.0,16679.0,0.05625558]
[1672783865781,4.65379009,16680.0,16679.0,0.05616681]
[1672783866062,4.65379009,16680.0,16679.0,0.05616682]
[1672783866410,4.65045947,16680.0,16679.0,0.05616682]
[1672783867400,4.65045947,16680.0,16679.0,0.05616683]
[1672783869150,4.65045947,16680.0,16679.0,0.05616684]
[1672783870890,4.65045947,16680.0,16679.0,0.05616685]
[1672783872318,4.22131355,16680.0,16679.0,0.05616685]
[1672783872573,4.23466661,16680.0,16679.0,0.05616687]
[1672783872780,4.23466661,16680.0,16679.0,0.05616689]
[1672783872997,4.10066661,16680.0,16679.0,0.05516689]
[1672783873235,4.52124436,16680.0,16679.0,0.0561669]
[1672783873475,4.22131355,16680.0,16679.0,0.0561669]
[1672783873741,4.22131355,16680.0,16679.0,0.05616691]
[1672783875365,4.22131355,16680.0,16679.0,0.05616692]
[1672783875798,4.55973975,16680.0,16679.0,0.05616692]
[1672783876170,4.55973975,16680.0,16679.0,0.05616693]
[1672783876381,4.22131355,16680.0,16679.0,0.05616693]
[1672783877576,4.22131355,16680.0,16679.0,0.04264299]
[1672783878059,4.22131355,16680.0,16679.0,0.042643]